fUSD/lending_fUSD_20251123
["ID","MTS","AMOUNT","RATE_DAILY","PERIOD"]
[394677822,1763859057532,-815.56,0.00017273,2]
[394677823,1763859057541,-568.95,0.00017273,2]
[394677824,1763859057551,-500.0,0.00017273,2]
[394677825,1763859057560,-500.0,0.00017273,2]
[394677826,1763859057569,-500.0,0.00017273,2]
[394677827,1763859057578,-654.55,0.00017273,2]
[394677828,1763859057588,-500.0,0.00017273,2]
[394677829,1763859057598,-599.72,0.00017273,2]
[394677830,1763859057608,-500.0,0.00017273,2]
[394677831,1763859057617,-500.0,0.00017273,2]
[394677832,1763859057626,-1502.35,0.00017273,2]
[394677833,1763859057636,-1041.51,0.00017273,2]
[394677834,1763859057646,-500.0,0.00017273,2]
[394677835,1763859057655,-1019.56,0.00017273,2]
[394677836,1763859057664,-824.19,0.00017273,2]
[394677837,1763859057673,-500.0,0.00017273,2]
[394677838,1763859057682,-500.0,0.00017273,2]
[394677839,1763859057691,-500.0,0.00017273,2]
[394677840,1763859057700,-556.78,0.00017273,2]
[394677841,1763859057710,-767.16,0.00017273,2]
[394677842,1763859057719,-585.72,0.00017273,2]
[394677843,1763859057729,-500.0,0.00017273,2]
[394677844,1763859057738,-1309.89,0.00017273,2]
[394677845,1763859057747,-801.95,0.00017273,2]
[394677846,1763859057756,-373.31414819,0.00017273,2]
[394677847,1763859057766,-500.0,0.00017273,2]
[394677848,1763859057775,-500.0,0.00017273,2]
[394677849,1763859057784,-500.0,0.00017273,2]
[394677850,1763859057793,-500.0,0.00017273,2]
[394677851,1763859057803,-500.0,0.00017273,2]
[394677852,1763859057813,-500.0,0.00017273,2]
[394677853,1763859057823,-2185.15,0.00017273,2]
[394677854,1763859057834,-500.0,0.00017273,2]
[394677855,1763859057961,-500.0,0.00017273,2]
[394677856,1763859057972,-500.0,0.00017273,2]
[394677857,1763859057982,-863.03,0.00017273,2]
[394677858,1763859057991,-500.0,0.00017273,2]
[394677859,1763859058001,-500.0,0.00017273,2]
[394677860,1763859058010,-600.22,0.00017273,2]
[394677861,1763859058019,-500.0,0.00017273,2]
[394677862,1763859058028,-625.62,0.00017273,2]
[394677863,1763859058037,-500.0,0.00017273,2]
[394677864,1763859058047,-500.0,0.00017273,2]
[394677865,1763859058056,-500.0,0.00017273,2]
[394677866,1763859058066,-500.0,0.00017273,2]
[394677867,1763859058076,-500.0,0.00017273,2]
[394677868,1763859058087,-555.42,0.00017273,2]
[394677869,1763859058100,-500.0,0.00017273,2]
[394677870,1763859058109,-2164.02,0.00017273,2]
[394677871,1763859058118,-500.0,0.00017273,2]
[394677872,1763859058127,-500.0,0.00017273,2]
[394677873,1763859058138,-500.0,0.00017273,2]
[394677874,1763859058148,-604.4,0.00017273,2]
[394677875,1763859058157,-500.0,0.00017273,2]
[394677876,1763859058167,-830.12,0.00017273,2]
[394677877,1763859058177,-987.68,0.00017273,2]
[394677878,1763859058187,-222.29209648,0.00017273,2]
[394677879,1763859058196,-1780.25,0.00017273,2]
[394677880,1763859058205,-1375.55,0.00017273,2]
[394677881,1763859058215,-500.0,0.00017273,2]
[394677882,1763859058225,-612.23,0.00017273,2]
[394677883,1763859058236,-503.62,0.00017273,2]
[394677884,1763859058245,-636.49,0.00017273,2]
[394677885,1763859058255,-1073.87,0.00017273,2]
[394677886,1763859058267,-729.49,0.00017273,2]
[394677887,1763859058277,-500.0,0.00017273,2]
[394677888,1763859058287,-500.0,0.00017273,2]
[394677889,1763859058297,-500.0,0.00017273,2]
[394677890,1763859058306,-706.08,0.00017273,2]
[394677891,1763859058316,-500.0,0.00017273,2]
[394677892,1763859058326,-500.0,0.00017273,2]
[394677893,1763859058335,-500.0,0.00017273,2]
[394677894,1763859058345,-500.0,0.00017273,2]
[394677895,1763859058354,-500.0,0.00017273,2]
[394677896,1763859058363,-500.0,0.00017273,2]
[394677897,1763859058372,-701.16,0.00017273,2]
[394677898,1763859058381,-500.0,0.00017273,2]
[394677899,1763859058391,-911.73,0.00017273,2]
[394677900,1763859058401,-758.92,0.00017273,2]
[394677901,1763859058410,-500.0,0.00017273,2]
[394677902,1763859058419,-500.0,0.00017273,2]
[394677903,1763859058429,-500.0,0.00017273,2]
[394677904,1763859058438,-206.25960905,0.00017273,2]
[394677905,1763859058448,-672.83,0.00017273,2]
[394677906,1763859058457,-500.0,0.00017273,2]
[394677907,1763859058467,-500.0,0.00017273,2]
[394677908,1763859058477,-2544.87,0.00017273,2]
[394677909,1763859058486,-500.0,0.00017273,2]
[394677910,1763859058495,-600.0,0.00017274,2]
[394677911,1763859058505,-4356.54222344,0.00017325,2]
[394677912,1763859058514,-300.0,0.00017337,2]
[394677913,1763859058524,-166.66,0.00017384,2]
[394677914,1763859058533,-150.0,0.00017408,2]
[394677915,1763859058543,-150.0,0.00017408,2]
[394677916,1763859058552,-150.0,0.00017408,2]
[394677917,1763859058563,-150.0,0.00017408,2]
[394677918,1763859058573,-150.0,0.00017408,2]
[394677919,1763859058583,-510.78900437,0.00017408,2]
[394677920,1763859058594,-500.0,0.00017408,2]
[394677921,1763859058604,-150.0,0.00017408,2]
[394677922,1763859058614,-150.0,0.00017408,2]
[394677923,1763859058624,-500.0,0.00017408,2]
[394677924,1763859058634,-150.0,0.00017408,2]
[394677925,1763859058645,-253.52471131,0.00017408,2]
[394677926,1763859058654,-500.0,0.00017408,2]
[394677927,1763859058664,-609.0,0.00017408,2]
[394677928,1763859058673,-500.0,0.00017408,2]
[394677929,1763859058685,-500.0,0.00017408,2]
[394677930,1763859058698,-500.0,0.00017408,2]
[394677931,1763859058712,-500.0,0.00017408,2]
[394677932,1763859058723,-500.0,0.00017408,2]
[394677933,1763859058732,-500.0,0.00017408,2]
[394677934,1763859058742,-497.0,0.00017408,2]
[394677935,1763859058753,-585.33578012,0.00017447,2]
[394677936,1763859058762,-592.73989998,0.00017447,2]
[394677937,1763859058772,-500.96983964,0.00017521,2]
[394677938,1763859058782,-504.10346457,0.00017521,2]
[394677939,1763859058792,-1000.0,0.00017521,2]
[394677940,1763859058804,-1000.0,0.00017521,2]
[394677941,1763859058814,-196.23949712,0.00017521,2]
[394677942,1763859058825,-1000.0,0.00017521,2]
[394677943,1763859058834,-1000.98590113,0.00017521,2]
[394677944,1763859058845,-1000.0,0.00017521,2]
[394677945,1763859058854,-346.78251701,0.00017521,2]
[394677946,1763859058864,-1002.14745797,0.00017521,2]
[394677947,1763859058873,-1000.0,0.00017521,2]
[394677948,1763859058883,-151.0,0.00017521,2]
[394677949,1763859058892,-500.0,0.00017541,2]
[394677950,1763859058903,-500.0,0.00017542,2]
[394677951,1763859058912,-500.0,0.00017542,2]
[394677952,1763859058922,-500.0,0.00017543,2]
[394677953,1763859058933,-500.0,0.00017543,2]
[394677954,1763859058944,-500.0,0.00017543,2]
[394677955,1763859058954,-500.0,0.00017543,2]
[394677956,1763859058965,-681.04,0.00017543,2]
[394677957,1763859058974,-500.0,0.00017543,2]
[394677958,1763859058984,-500.0,0.00017543,2]
[394677959,1763859058994,-500.0,0.00017543,2]
[394677960,1763859059003,-975.07,0.00017543,2]
[394677961,1763859059014,-500.0,0.00017543,2]
[394677962,1763859059023,-500.0,0.00017543,2]
[394677963,1763859059033,-500.0,0.00017543,2]
[394677964,1763859059043,-500.0,0.00017543,2]
[394677965,1763859059053,-500.0,0.00017543,2]
[394677966,1763859059062,-500.0,0.00017543,2]
[394677967,1763859059073,-500.0,0.00017543,2]
[394677968,1763859059082,-500.0,0.00017543,2]
[394677969,1763859059094,-535.37,0.00017543,2]
[394677970,1763859059104,-500.0,0.00017543,2]
[394677971,1763859059114,-500.0,0.00017543,2]
[394677972,1763859059123,-500.0,0.00017543,2]
[394677973,1763859059135,-510.89,0.00017543,2]
[394677974,1763859059146,-770.97,0.00017543,2]
[394677975,1763859059155,-580.04,0.00017543,2]
[394677976,1763859059167,-795.2,0.00017543,2]
[394677977,1763859059177,-500.0,0.00017543,2]
[394677978,1763859059186,-500.0,0.00017543,2]
[394677979,1763859059196,-500.0,0.00017543,2]
[394677980,1763859059207,-500.0,0.00017543,2]
[394677981,1763859059219,-150.0,0.00017545,2]
[394677982,1763859059228,-165.67396154,0.00017545,2]
[394677983,1763859059238,-150.0,0.00017545,2]
[394677984,1763859059248,-150.0,0.00017545,2]
[394677985,1763859059258,-171.52206719,0.00017545,2]
[394677986,1763859059267,-500.0,0.00017545,2]
[394677987,1763859059276,-150.0,0.00017545,2]
[394677988,1763859059286,-150.0,0.00017545,2]
[394677989,1763859059295,-500.0,0.00017545,2]
[394677990,1763859059305,-150.0,0.00017545,2]
[394677991,1763859059314,-500.0,0.00017545,2]
[394677992,1763859059323,-609.0,0.00017545,2]
[394677993,1763859059333,-500.0,0.00017545,2]
[394677994,1763859059342,-500.0,0.00017545,2]
[394677995,1763859059352,-500.0,0.00017545,2]
[394677996,1763859059361,-500.0,0.00017545,2]
[394677997,1763859059376,-500.0,0.00017545,2]
[394677998,1763859059396,-500.0,0.00017545,2]
[394677999,1763859059406,-497.0,0.00017545,2]
[394678000,1763859059416,-506.4542836,0.00017546,2]
[394678001,1763859059425,-500.0,0.00017546,2]
[394678002,1763859059435,-500.0,0.00017546,2]
[394678003,1763859059444,-498.75013512,0.00017546,2]
[394678004,1763859059453,-500.0,0.00017546,2]
[394678005,1763859059462,-616.23,0.00017546,2]
[394678006,1763859059472,-500.0,0.00017546,2]
[394678007,1763859059481,-739.27,0.00017546,2]
[394678008,1763859059492,-814.41,0.00017546,2]
[394678009,1763859059501,-718.3,0.00017546,2]
[394678010,1763859059510,-654.39,0.00017546,2]
[394678011,1763859059519,-497.67879639,0.00017546,2]
[394678012,1763859059529,-500.0,0.00017546,2]
[394678013,1763859059538,-500.0,0.00017546,2]
[394678014,1763859059548,-500.0,0.00017546,2]
[394678015,1763859059558,-560.48,0.00017546,2]
[394678016,1763859059567,-500.0,0.00017546,2]
[394678017,1763859059577,-500.0,0.00017546,2]
[394678018,1763859059586,-500.0,0.00017546,2]
[394678019,1763859059709,-500.0,0.00017546,2]
[394678020,1763859059720,-192.8660115,0.00017546,2]
[394678021,1763859059731,-500.0,0.00017546,2]
[394678022,1763859059741,-500.0,0.00017546,2]
[394678023,1763859059751,-500.0,0.00017546,2]
[394678024,1763859059761,-500.0,0.00017546,2]
[394678025,1763859059770,-500.0,0.00017546,2]
[394678026,1763859059779,-644.98,0.00017546,2]
[394678027,1763859059789,-500.0,0.00017546,2]
[394678028,1763859059799,-500.0,0.00017546,2]
[394678029,1763859059808,-500.0,0.00017546,2]
[394678030,1763859059819,-799.78,0.00017546,2]
[394678031,1763859059829,-687.28,0.00017546,2]
[394678032,1763859059838,-785.87,0.00017546,2]
[394678033,1763859059848,-672.3,0.00017546,2]
[394678034,1763859059858,-500.0,0.00017546,2]
[394678035,1763859059872,-636.14,0.00017546,2]
[394678036,1763859059882,-500.0,0.00017546,2]
[394678037,1763859059891,-646.69,0.00017546,2]
[394678038,1763859059901,-966.5,0.00017546,2]
[394678039,1763859059911,-500.0,0.00017546,2]
[394678040,1763859059921,-500.0,0.00017546,2]
[394678041,1763859059931,-743.06,0.00017546,2]
[394678042,1763859059941,-160.53782802,0.00017546,2]
[394678043,1763859059951,-718.0,0.00017546,2]
[394678044,1763859059960,-500.0,0.00017546,2]
[394678045,1763859059970,-1140.01,0.00017546,2]
[394678046,1763859059980,-500.0,0.00017546,2]
[394678047,1763859059992,-500.0,0.00017546,2]
[394678048,1763859060002,-1296.25,0.00017546,2]
[394678049,1763859060011,-500.0,0.00017546,2]
[394678050,1763859060021,-516.12,0.00017546,2]
[394678051,1763859060030,-500.0,0.00017546,2]
[394678052,1763859060040,-727.74,0.00017546,2]
[394678053,1763859060050,-500.0,0.00017546,2]
[394678054,1763859060060,-856.65,0.00017546,2]
[394678055,1763859060070,-436.49456996,0.00017546,2]
[394678056,1763859060082,-500.0,0.00017546,2]
[394678057,1763859060093,-500.0,0.00017546,2]
[394678058,1763859060103,-500.0,0.00017546,2]
[394678059,1763859060112,-500.0,0.00017546,2]
[394678060,1763859060121,-300.0,0.00017546,2]
[394678061,1763859060131,-500.0,0.00017546,2]
[394678062,1763859060140,-500.0,0.00017546,2]
[394678063,1763859060150,-500.0,0.00017546,2]
[394678064,1763859060159,-500.0,0.00017546,2]
[394678065,1763859060170,-500.0,0.00017546,2]
[394678066,1763859060179,-500.0,0.00017546,2]
[394678067,1763859060189,-552.3,0.00017546,2]
[394678068,1763859060199,-500.0,0.00017546,2]
[394678069,1763859060210,-629.68,0.00017546,2]
[394678070,1763859060219,-500.0,0.00017546,2]
[394678071,1763859060229,-571.73,0.00017546,2]
[394678072,1763859060239,-500.0,0.00017546,2]
[394678073,1763859060248,-182.29786792,0.00017546,2]
[394678074,1763859060258,-500.0,0.00017546,2]
[394678075,1763859060268,-500.0,0.00017546,2]
[394678076,1763859060280,-500.0,0.00017546,2]
[394678077,1763859060291,-500.0,0.00017546,2]
[394678078,1763859060301,-553.65726474,0.00017546,2]
[394678079,1763859060311,-500.0,0.00017546,2]
[394678080,1763859060321,-500.0,0.00017546,2]
[394678081,1763859060331,-500.0,0.00017546,2]
[394678082,1763859060340,-411.08437286,0.00017546,2]
[394678083,1763859060350,-798.11,0.00017546,2]
[394678084,1763859060360,-714.05,0.00017546,2]
[394678085,1763859060370,-500.0,0.00017546,2]
[394678086,1763859060379,-500.0,0.00017546,2]
[394678087,1763859060389,-500.0,0.00017546,2]
[394678088,1763859060400,-500.0,0.00017546,2]
[394678089,1763859060410,-529.05,0.00017546,2]
[394678090,1763859060420,-576.40208378,0.00017546,2]
[394678091,1763859060429,-500.0,0.00017546,2]
[394678092,1763859060442,-599.93,0.00017546,2]
[394678093,1763859060461,-1130.17,0.00017546,2]
[394678094,1763859060479,-546.39,0.00017546,2]
[394678095,1763859060499,-733.84,0.00017546,2]
[394678096,1763859060514,-1014.32,0.00017546,2]
[394678097,1763859060528,-500.0,0.00017546,2]
[394678098,1763859060546,-500.0,0.00017546,2]
[394678099,1763859060564,-500.0,0.00017546,2]
[394678100,1763859060584,-500.0,0.00017546,2]
[394678101,1763859060602,-652.15,0.00017546,2]
[394678102,1763859060620,-500.0,0.00017546,2]
[394678103,1763859060636,-624.02,0.00017546,2]
[394678104,1763859060650,-1139.07,0.00017546,2]
[394678105,1763859060669,-500.0,0.00017546,2]
[394678106,1763859060681,-511.86,0.00017546,2]
[394678107,1763859060697,-500.0,0.00017546,2]
[394678108,1763859060712,-500.0,0.00017546,2]
[394678109,1763859060726,-500.0,0.00017546,2]
[394678110,1763859060743,-500.0,0.00017546,2]
[394678111,1763859060758,-571.46,0.00017546,2]
[394678112,1763859060773,-1000.0,0.00017546,2]
[394678113,1763859060788,-880.94,0.00017546,2]
[394678114,1763859060802,-720.28,0.00017546,2]
[394678115,1763859060817,-500.0,0.00017546,2]
[394678116,1763859060833,-500.0,0.00017546,2]
[394678117,1763859060848,-500.0,0.00017546,2]
[394678118,1763859060862,-500.0,0.00017546,2]
[394678119,1763859060878,-766.53,0.00017546,2]
[394678120,1763859060893,-192.26160898,0.00017546,2]
[394678121,1763859061691,-151.0,0.00016999,2]
[394678122,1763859061701,-151.0,0.00017,2]
[394678123,1763859061711,-759.13839102,0.00017546,2]
[394678124,1763859061721,-1285.402868,0.00017546,2]
[394678125,1763859062645,-768.12,0.00016998,2]
[394678126,1763859062655,-500.0,0.00016998,2]
[394678127,1763859062665,-138.34052933,0.00016998,2]
[394678128,1763859063135,-361.65947067,0.00016998,2]
[394678129,1763859063145,-158.762919,0.00016999,2]
[394678130,1763859063154,-151.0,0.00016999,2]
[394678131,1763859063163,-151.000011,0.00016999,2]
[394678132,1763859063175,-158.762919,0.00016999,2]
[394678133,1763859063183,-151.0,0.00016999,2]
[394678134,1763859063193,-158.762919,0.00016999,2]
[394678135,1763859063202,-151.0,0.00016999,2]
[394678136,1763859063212,-158.762919,0.00017,2]
[394678137,1763859063221,-300.580472,0.00017,2]
[394678138,1763859063230,-158.762911,0.00017,2]
[394678139,1763859063240,-500.0,0.00017272,2]
[394678140,1763859063249,-768.12,0.00017272,2]
[394678141,1763859063258,-500.0,0.00017272,2]
[394678142,1763859063268,-500.0,0.00017272,2]
[394678143,1763859063277,-171.247132,0.00017546,2]
[394678144,1763859063286,-636.28,0.00017546,2]
[394678145,1763859063295,-885.8,0.00017546,2]
[394678146,1763859063305,-234.57641998,0.00017546,2]
[394678147,1763859063314,-265.06010465,0.00017546,2]
[394678154,1763860232005,-164.02,0.00016322,2]
[394678155,1763860232015,-180.27654404,0.00016368,2]
[394678156,1763860232025,-578.20924308,0.00016368,2]
[394678157,1763860232034,-200.0,0.00016467,2]
[394678158,1763860232049,-999.0,0.00016468,3]
[394678159,1763860232070,-150.0,0.00016757,2]
[394678160,1763860232087,-280.5422,0.00016898,2]
[394678161,1763860232096,-1904.95981939,0.00016899,2]
[394678162,1763860232106,-509.6276526,0.00016988,2]
[394678163,1763860232116,-250.0,0.00016988,2]
[394678164,1763860232126,-1200.0,0.00016993,2]
[394678165,1763860232135,-140.07227242,0.00016995,2]
[394678166,1763860232146,-159.92772758,0.00016995,2]
[394678167,1763860232155,-286.63264631,0.00016995,2]
[394678170,1763860232175,-13.36735369,0.00016995,2]
[394678172,1763860232184,-1259.51033803,0.00016996,2]
[394678174,1763860232194,-4761.37515894,0.00016996,2]
[394678176,1763860232205,-462.11065713,0.00016996,2]
[394678182,1763860238046,-1253.6138459,0.00016996,2]
[394678183,1763860238056,-384.0,0.00016996,2]
[394678184,1763860238065,-205.09694772,0.00016997,2]
[394678185,1763860238075,-500.0,0.00016997,2]
[394678186,1763860238084,-500.0,0.00016997,2]
[394678187,1763860238094,-500.0,0.00016997,2]
[394678188,1763860238103,-500.0,0.00016998,2]
[394678189,1763860238112,-603.75013167,0.00016998,2]
[394678190,1763860238122,-500.0,0.00016998,2]
[394678191,1763860238132,-500.0,0.00016998,2]
[394678192,1763860238141,-512.07631663,0.00016998,2]
[394678193,1763860238151,-553.92,0.00016998,2]
[394678194,1763860238161,-677.56,0.00016998,2]
[394678195,1763860238172,-500.0,0.00016998,2]
[394678196,1763860238182,-650.23,0.00016998,2]
[394678197,1763860238195,-500.0,0.00016998,2]
[394678198,1763860238205,-796.23,0.00016998,2]
[394678199,1763860238215,-712.8,0.00016998,2]
[394678200,1763860238226,-500.0,0.00016998,2]
[394678201,1763860238235,-500.0,0.00016998,2]
[394678202,1763860238245,-500.0,0.00016998,2]
[394678203,1763860238254,-500.0,0.00016998,2]
[394678204,1763860238264,-570.46,0.00016998,2]
[394678206,1763860238273,-501.98,0.00016998,2]
[394678207,1763860238282,-500.0,0.00016998,2]
[394678208,1763860238292,-490.01712623,0.00016998,2]
[394678209,1763860238304,-500.0,0.00016998,2]
[394678210,1763860238314,-500.0,0.00016998,2]
[394678211,1763860238323,-544.14,0.00016998,2]
[394678212,1763860238332,-500.0,0.00016998,2]
[394678213,1763860238342,-409.88234134,0.00016998,2]
[394678214,1763860238351,-500.0,0.00016998,2]
[394678215,1763860238360,-500.0,0.00016998,2]
[394678216,1763860238369,-500.0,0.00016998,2]
[394678217,1763860238378,-526.07,0.00016998,2]
[394678218,1763860238387,-245.14914134,0.00016998,2]
[394678219,1763860238399,-254.85085866,0.00016998,2]
[394678220,1763860238408,-500.0,0.00016998,2]
[394678221,1763860238417,-500.0,0.00016998,2]
[394678222,1763860238427,-500.0,0.00016998,2]
[394678223,1763860238436,-500.0,0.00016998,2]
[394678224,1763860238445,-500.0,0.00016998,2]
[394678225,1763860238457,-548.56,0.00016998,2]
[394678226,1763860238467,-613.16,0.00016998,2]
[394678227,1763860238476,-638.03,0.00016998,2]
[394678228,1763860238485,-500.0,0.00016998,2]
[394678229,1763860238494,-500.0,0.00016998,2]
[394678230,1763860238503,-500.0,0.00016998,2]
[394678231,1763860238513,-500.0,0.00016998,2]
[394678232,1763860238523,-500.0,0.00016998,2]
[394678233,1763860238532,-500.0,0.00016998,2]
[394678234,1763860238544,-983.87,0.00016998,2]
[394678235,1763860238553,-676.53,0.00016998,2]
[394678236,1763860238562,-500.0,0.00016998,2]
[394678237,1763860238572,-500.0,0.00016998,2]
[394678238,1763860238582,-500.0,0.00016998,2]
[394678239,1763860238592,-512.85,0.00016998,2]
[394678240,1763860238602,-500.0,0.00016998,2]
[394678241,1763860238611,-500.0,0.00016998,2]
[394678242,1763860238621,-500.0,0.00016998,2]
[394678243,1763860238632,-592.38,0.00016998,2]
[394678244,1763860238643,-500.0,0.00016998,2]
[394678245,1763860238653,-500.0,0.00016998,2]
[394678246,1763860238663,-500.0,0.00016998,2]
[394678247,1763860238673,-747.59,0.00016998,2]
[394678248,1763860238682,-500.0,0.00016998,2]
[394678249,1763860238691,-500.0,0.00016998,2]
[394678250,1763860238701,-770.07,0.00016998,2]
[394678251,1763860238710,-500.0,0.00016998,2]
[394678252,1763860238720,-500.0,0.00016998,2]
[394678253,1763860238729,-500.0,0.00016998,2]
[394678254,1763860238738,-500.0,0.00016998,2]
[394678255,1763860238747,-500.0,0.00016998,2]
[394678256,1763860238757,-500.0,0.00016998,2]
[394678257,1763860238766,-549.74,0.00016998,2]
[394678258,1763860238775,-513.57839796,0.00016998,2]
[394678259,1763860238784,-500.0,0.00016998,2]
[394678260,1763860238793,-500.0,0.00016998,2]
[394678261,1763860238802,-500.0,0.00016998,2]
[394678262,1763860238812,-526.14,0.00016998,2]
[394678263,1763860238822,-500.0,0.00016998,2]
[394678264,1763860238831,-703.23,0.00016998,2]
[394678265,1763860238840,-500.0,0.00016998,2]
[394678266,1763860238849,-500.0,0.00016998,2]
[394678267,1763860238858,-804.94,0.00016998,2]
[394678268,1763860238867,-500.0,0.00016998,2]
[394678269,1763860238877,-521.53,0.00016998,2]
[394678270,1763860238886,-500.0,0.00016998,2]
[394678271,1763860238895,-170.92985101,0.00016998,2]
[394678272,1763860238904,-500.0,0.00016998,2]
[394678273,1763860238914,-500.0,0.00016998,2]
[394678274,1763860238923,-500.0,0.00016998,2]
[394678275,1763860238932,-791.11,0.00016998,2]
[394678276,1763860238941,-500.0,0.00016998,2]
[394678277,1763860238950,-500.0,0.00016998,2]
[394678278,1763860238958,-934.59,0.00016998,2]
[394678279,1763860238967,-500.0,0.00016998,2]
[394678280,1763860238977,-500.0,0.00016998,2]
[394678281,1763860238986,-500.0,0.00016998,2]
[394678282,1763860238995,-500.0,0.00016998,2]
[394678283,1763860239004,-500.0,0.00016998,2]
[394678284,1763860239014,-735.12,0.00016998,2]
[394678285,1763860239023,-760.94,0.00016998,2]
[394678286,1763860239032,-500.0,0.00016998,2]
[394678287,1763860239041,-500.0,0.00016998,2]
[394678288,1763860239050,-1260.92,0.00016998,2]
[394678289,1763860239060,-500.0,0.00016998,2]
[394678290,1763860239070,-500.0,0.00016998,2]
[394678291,1763860239079,-500.0,0.00016998,2]
[394678292,1763860239088,-583.45,0.00016998,2]
[394678293,1763860239098,-500.0,0.00016998,2]
[394678294,1763860239108,-500.0,0.00016998,2]
[394678295,1763860239117,-573.49,0.00016998,2]
[394678296,1763860239127,-500.0,0.00016998,2]
[394678297,1763860239136,-500.0,0.00016998,2]
[394678298,1763860239146,-558.09,0.00016998,2]
[394678299,1763860239156,-647.24,0.00016998,2]
[394678300,1763860239166,-500.0,0.00016998,2]
[394678301,1763860239175,-500.0,0.00016998,2]
[394678302,1763860239184,-364.98336872,0.00016998,2]
[394678303,1763860239193,-500.0,0.00016998,2]
[394678304,1763860239203,-642.73,0.00016998,2]
[394678305,1763860239212,-500.0,0.00016998,2]
[394678306,1763860239221,-719.69,0.00016998,2]
[394678307,1763860239230,-500.0,0.00016998,2]
[394678308,1763860239239,-695.67,0.00016998,2]
[394678309,1763860239248,-500.0,0.00016998,2]
[394678310,1763860239257,-647.5033653,0.00016998,2]
[394678311,1763860239266,-500.0,0.00016998,2]
[394678312,1763860239276,-500.0,0.00016998,2]
[394678313,1763860239285,-616.76,0.00016998,2]
[394678314,1763860239294,-500.0,0.00016998,2]
[394678315,1763860239303,-500.0,0.00016998,2]
[394678316,1763860239312,-500.0,0.00016998,2]
[394678317,1763860239322,-500.0,0.00016998,2]
[394678318,1763860239338,-624.04932756,0.00016998,2]
[394678319,1763860239349,-500.0,0.00016998,2]
[394678320,1763860239359,-500.0,0.00016998,2]
[394678321,1763860239369,-500.0,0.00016998,2]
[394678322,1763860239379,-553.21,0.00016998,2]
[394678323,1763860239389,-500.0,0.00016998,2]
[394678324,1763860239399,-500.0,0.00016998,2]
[394678325,1763860239409,-656.27,0.00016998,2]
[394678326,1763860239419,-673.16,0.00016998,2]
[394678327,1763860239428,-500.0,0.00016998,2]
[394678328,1763860239437,-500.0,0.00016998,2]
[394678329,1763860239447,-500.0,0.00016998,2]
[394678330,1763860239458,-461.05504711,0.00016998,2]
[394678340,1763860240500,-220.45495289,0.00016998,2]
[394678341,1763860240509,-340.97487065,0.00016998,2]
[394678342,1763860240520,-788.134941,0.00016998,2]
[394678347,1763860246032,-212.38018835,0.00016998,2]
[394678348,1763860246041,-500.0,0.00016998,2]
[394678349,1763860246051,-583.18,0.00016998,2]
[394678350,1763860246060,-962.38,0.00016998,2]
[394678351,1763860246069,-500.0,0.00016998,2]